bitfinex-derivatives/quotes_ETHF0:USTF0_20240910
["timestamp","ask_amount","ask_price","bid_price","bid_amount"]
[1725940662037,0.3661,2343.2,2343.1,0.76266]
[1725940662330,0.3661,2343.2,2343.1,0.3359]
[1725940662941,0.79284,2343.2,2343.1,0.3359]
[1725940666135,0.42676,2343.1,2343.0,0.3635]
[1725940666329,1.65676,2343.1,2343.0,0.3635]
[1725940666742,0.3661,2343.2,2343.0,0.3635]
[1725940667042,2.02284,2343.2,2343.1,0.3893]
[1725940668732,1.5961,2343.2,2343.1,0.3893]
[1725940669242,2.02284,2343.2,2343.1,0.3893]
[1725940671456,0.42674,2343.2,2343.1,0.3893]
[1725940671653,1.06675,2343.5,2343.1,2.73755622]
[1725940671654,0.3634,2343.5,2343.1,2.73755622]
[1725940671838,0.3634,2343.5,2343.2,0.42674]
[1725940672035,1.23,2343.4,2343.2,0.42674]
[1725940672342,1.23,2343.4,2343.3,0.3934]
[1725940678537,1.23,2343.4,2343.3,0.82012]
[1725940681938,0.099,2343.8,2343.6,0.42666]
[1725940682250,1.06649,2344.1,2343.7,1.1266]
[1725940682251,0.4,2343.9,2343.7,1.1266]
[1725940682436,0.42664,2343.8,2343.7,0.3818]
[1725940682636,4.69304,2343.8,2343.7,0.3818]
[1725940684947,0.42669,2343.5,2343.3,0.42671]
[1725940685148,1.65667,2343.6,2343.4,0.4267]
[1725940685748,2.03627,2343.6,2343.5,0.399]
[1725940686247,1.6096,2343.6,2343.5,0.82569]
[1725940686447,2.03627,2343.6,2343.5,0.399]
[1725940686941,2.03627,2343.6,2343.5,0.82569]
[1725940690143,0.42665,2343.7,2343.6,0.42666]
[1725940690450,1.65665,2343.7,2343.6,0.82196]
[1725940690748,5.92385,2343.7,2343.6,0.82196]
[1725940691047,0.42658,2344.1,2343.6,5.8925]
[1725940691247,1.23,2344.0,2343.7,0.3651]
[1725940691438,1.23,2344.0,2343.9,0.42661]
[1725940691638,1.65659,2344.0,2343.9,0.42661]
[1725940693357,1.65657,2344.2,2343.9,4.2664]
[1725940693653,1.65657,2344.2,2344.0,0.81098]
[1725940693852,1.65657,2344.2,2344.1,0.82188]
[1725940694049,1.65657,2344.2,2344.1,1.18978]
[1725940694264,1.23,2344.2,2344.1,1.18978]
[1725940694551,1.65656,2344.2,2344.1,0.7632]
[1725940695754,1.65656,2344.2,2344.1,1.18978]
[1725940696450,1.65656,2344.2,2344.1,0.7632]
[1725940696949,0.42653,2344.4,2344.1,5.0288]
[1725940697251,0.42655,2344.3,2344.2,0.42656]
[1725940697750,1.65655,2344.3,2344.2,0.42656]
[1725940697959,0.42656,2344.2,2344.1,0.7632]
[1725940698149,2.05556,2344.2,2344.1,0.7632]
[1725940699157,2.05556,2344.2,2344.1,1.18978]
[1725940699657,2.05556,2344.2,2344.1,0.7632]
[1725940700761,1.65656,2344.2,2344.1,1.18978]
[1725940704458,6.94692,2344.2,2343.8,0.82722]
[1725940704763,6.94692,2344.2,2343.8,0.4006]
[1725940704764,1.65661,2343.9,2343.8,0.4006]
[1725940705062,0.42664,2343.8,2343.6,1.22136]
[1725940705262,1.65665,2343.7,2343.6,1.22136]
[1725940705561,1.23,2343.7,2343.6,1.22136]
[1725940705757,1.23,2343.7,2343.6,5.48856]
[1725940707062,0.42663,2343.8,2343.7,0.42664]
[1725940708563,1.65662,2343.9,2343.8,0.42663]
[1725940708768,1.23,2343.9,2343.7,0.42663]
[1725940708956,1.65663,2343.9,2343.8,0.42663]
[1725940709261,0.42663,2343.8,2343.7,0.42664]
[1725940710459,1.23,2343.9,2343.6,0.7947]
[1725940710656,0.42663,2343.8,2343.7,0.42664]
[1725940715470,1.65662,2343.9,2343.8,0.42663]
[1725940718268,1.23,2343.9,2343.8,0.42663]
[1725940718962,1.65661,2343.9,2343.8,0.42663]
[1725940720860,1.23,2343.9,2343.8,0.42663]
[1725940721864,1.65661,2343.9,2343.8,0.42663]
[1725940728573,1.06659,2343.8,2343.5,1.11825622]
[1725940728782,0.42667,2343.6,2343.5,0.81697]
[1725940729087,2.04037,2343.7,2343.6,0.42667]
[1725940732772,1.65667,2343.7,2343.6,0.42667]
[1725940733072,1.6276,2343.8,2343.7,0.42665]
[1725940733269,0.42663,2343.9,2343.8,0.42662]
[1725940738880,0.42664,2343.8,2343.7,0.42664]
[1725940739081,1.65664,2343.8,2343.7,0.42664]
[1725940740776,0.42665,2343.7,2343.6,0.47116]
[1725940740977,0.79215,2343.7,2343.6,0.47116]
[1725940742787,2.02215,2343.7,2343.6,0.47116]
[1725940743087,2.02215,2343.7,2343.6,0.47117]
[1725940743580,8.42261,2343.7,2343.6,0.0445]
[1725940745486,8.70361587,2343.7,2343.6,0.0445]
[1725940749887,14.70361587,2343.7,2343.6,0.0445]
[1725940751086,0.42676,2343.1,2343.0,0.7501]
[1725940751382,1.65676,2343.1,2343.0,0.3648]
[1725940751684,2.72366,2343.1,2343.0,0.3648]
[1725940751889,11.8829,2343.1,2342.4,1.11825622]
[1725940752080,5.29445598,2343.1,2342.2,0.3672]
[1725940752287,1.23,2342.5,2342.4,0.82089]
[1725940756695,1.65687,2342.5,2342.4,0.82089]
[1725940756990,1.23,2342.5,2342.4,0.82089]
[1725940757583,1.65687,2342.5,2342.4,0.82089]
[1725940757789,1.65687,2342.5,2342.4,0.394]
[1725940758491,0.42689,2342.4,2342.2,0.79411]
[1725940758686,1.23,2342.3,2342.2,1.18111]
[1725940759190,1.6569,2342.3,2342.2,1.18111]
[1725940759386,1.6569,2342.3,2342.2,0.3672]
[1725940760880,1.6569,2342.3,2342.1,0.3681]
[1725940760881,0.42692,2342.2,2342.1,0.3681]
[1725940761078,1.65692,2342.2,2342.1,0.3681]
[1725940762397,1.23,2342.2,2342.1,0.3681]
[1725940762584,1.65692,2342.2,2342.1,0.3681]
[1725940763593,1.65692,2342.3,2342.1,0.79504]
[1725940763791,1.65692,2342.3,2342.2,0.3639]
[1725940764995,1.65692,2342.3,2342.2,0.79082]
[1725940765195,1.23,2342.3,2342.2,0.79082]
[1725940766095,1.6569,2342.3,2342.2,0.79082]
[1725940766795,1.23,2342.3,2342.2,0.79082]
[1725940767693,1.6569,2342.3,2342.2,0.79082]
[1725940768590,1.23,2342.3,2342.2,0.79082]
[1725940770505,0.4269,2342.4,2342.3,0.4269]
[1725940770506,1.23,2342.4,2342.3,0.4269]
[1725940770697,1.23,2342.6,2342.4,0.42689]
[1725940770904,1.65685,2342.6,2342.5,0.3823]
[1725940771199,1.65685,2342.6,2342.5,0.7513]
[1725940773000,1.65685,2342.6,2342.5,1.17817]
[1725940773300,1.65685,2342.6,2342.5,0.7513]
[1725940774396,1.16599,2343.0,2342.5,0.7513]
[1725940774697,0.42683,2342.7,2342.6,0.80154]
[1725940775601,1.65681,2342.8,2342.6,0.80154]
[1725940776398,1.65681,2342.8,2342.7,0.42683]
[1725940776603,1.65681,2342.8,2342.6,0.80154]
[1725940777404,0.42683,2342.7,2342.6,0.80154]
[1725940777609,1.65683,2342.8,2342.6,0.80154]
[1725940777899,0.42683,2342.7,2342.6,0.80154]
[1725940778203,1.65683,2342.7,2342.6,0.80154]
[1725940779400,1.65683,2342.7,2342.6,0.3747]
[1725940780104,2.03313,2342.7,2342.6,0.3747]
[1725940780996,0.42685,2342.6,2342.5,0.7513]
[1725940781206,0.42685,2342.6,2342.5,1.17817]
[1725940782106,0.42685,2342.6,2342.5,0.7513]
[1725940785700,0.42685,2342.6,2342.5,0.3823]
[1725940787108,0.42685,2342.6,2342.5,0.80917]
[1725940791808,2.03315,2342.7,2342.5,0.80917]
[1725940792012,0.42685,2342.6,2342.5,0.80917]
[1725940794417,0.42685,2342.6,2342.5,1.92742622]
[1725940796511,2.03314,2342.7,2342.6,0.42685]
[1725940796919,2.03314,2342.7,2342.6,0.80745]
[1725940797119,2.03314,2342.7,2342.6,0.3806]
[1725940797417,2.03314,2342.7,2342.6,1.18895]
[1725940797813,2.03314,2342.7,2342.6,0.3806]
[1725940798214,2.03314,2342.7,2342.5,1.92740622]
[1725940799114,2.03314,2342.7,2342.6,0.42685]
[1725940800020,1.6063,2342.7,2342.6,0.42685]
[1725940800220,1.23,2342.7,2342.6,0.42685]
[1725940800415,1.5994,2342.7,2342.6,0.42685]
[1725940800922,2.02623,2342.7,2342.6,0.42685]
[1725940801123,2.02623,2342.7,2342.5,1.92741622]
[1725940801319,0.3694,2342.7,2342.6,0.42685]
[1725940801517,0.099,2343.2,2342.6,1.11825622]
[1725940801723,0.115,2343.4,2343.3,0.42672]
[1725940801724,0.099,2343.4,2343.3,0.42672]
[1725940802029,1.23,2343.4,2343.2,1.11902593]
[1725940802324,1.23,2343.3,2343.0,1.11902593]
[1725940802526,1.23,2343.1,2342.9,1.54581593]
[1725940802726,1.65677,2343.1,2342.9,1.11902593]
[1725940803023,1.23,2343.1,2342.9,1.11902593]
[1725940803224,0.42678,2343.0,2342.9,0.3833]
[1725940803429,0.42678,2343.0,2342.8,1.87102593]
[1725940803616,1.23,2342.9,2342.8,1.87102593]
[1725940803816,1.23,2342.9,2342.8,2.29783593]
[1725940804721,1.23,2342.9,2342.8,1.17881]
[1725940806821,1.5988,2342.9,2342.8,1.17881]
[1725940809727,1.23,2342.9,2342.8,1.17881]
[1725940810131,1.23,2342.9,2342.8,0.752]
[1725940810132,1.6568,2342.9,2342.8,0.752]
[1725940810334,2.0289,2342.9,2342.8,0.752]
[1725940810833,2.0289,2342.9,2342.8,1.17881]
[1725940811323,1.6021,2342.9,2342.8,1.17881]
[1725940811630,1.23,2343.0,2342.9,0.4268]
[1725940811825,0.386,2343.3,2343.0,0.42677]
[1725940811826,1.23,2343.2,2343.0,0.42677]
[1725940812024,1.23,2343.2,2343.1,0.81706]
[1725940812534,1.23,2343.3,2343.1,0.3903]
[1725940812732,1.65672,2343.3,2343.2,0.80484]
[1725940813032,1.65672,2343.3,2343.2,0.742]
[1725940815231,1.65672,2343.3,2343.2,1.16874]
[1725940815424,1.65672,2343.3,2343.2,0.742]
[1725940815629,1.65672,2343.3,2343.2,1.16874]
[1725940820633,1.65672,2343.3,2343.2,0.742]
[1725940820938,6.56401,2343.3,2343.0,0.42677]
[1725940821137,0.42676,2343.1,2343.0,0.42677]
[1725940822333,0.42677,2343.1,2343.0,0.42678]
[1725940823335,2.02995,2343.2,2342.9,0.7551]
[1725940824142,2.02995,2343.2,2343.0,0.42676]
[1725940824937,2.02995,2343.2,2343.1,0.42676]
[1725940825138,1.06662,2343.8,2343.0,1.06695]
[1725940825330,1.23,2343.5,2343.4,0.4267]
[1725940825834,1.65669,2343.5,2343.3,0.42671]
[1725940826031,0.42669,2343.5,2343.4,1.1469]
[1725940826231,1.65669,2343.5,2343.4,1.1469]
[1725940828137,0.42668,2343.6,2343.4,1.1469]
[1725940828342,1.23,2343.5,2343.4,1.1469]
[1725940828837,1.65669,2343.5,2343.4,1.1469]
[1725940830640,1.23,2343.5,2343.4,1.5736]
[1725940830850,1.23,2343.5,2343.4,1.1469]
[1725940831049,0.42668,2343.6,2343.4,1.5736]
[1725940831239,1.23,2343.5,2343.4,1.1469]
[1725940831745,1.65669,2343.5,2343.4,1.1469]
[1725940832635,1.65669,2343.5,2342.9,1.11817568]
[1725940832636,0.42674,2343.3,2342.9,1.11817568]
[1725940832842,0.42674,2343.2,2343.0,1.57466]
[1725940833548,1.65674,2343.3,2343.0,1.57466]
[1725940833738,1.65674,2343.3,2343.1,0.42676]
[1725940833937,1.65674,2343.3,2343.0,1.1479]
[1725940833938,0.42674,2343.2,2343.0,1.57466]
[1725940835041,0.42674,2343.2,2343.0,1.61916]
[1725940835333,1.65673,2343.3,2343.1,0.42676]
[1725940835951,0.42674,2343.2,2343.0,1.61916]
[1725940836440,0.42674,2343.2,2343.1,0.42676]
[1725940837144,0.42672,2343.3,2343.2,0.42674]
[1725940837348,1.23,2343.4,2343.2,0.42674]
[1725940837349,1.65672,2343.4,2343.2,0.42674]
[1725940837646,1.23,2343.4,2343.3,0.42672]
[1725940838544,1.6567,2343.4,2343.3,0.42672]
[1725940840048,1.23,2343.4,2343.3,0.42672]
[1725940840653,1.6567,2343.4,2343.3,0.42672]
[1725940840854,1.23,2343.4,2343.3,0.42672]
[1725940841342,1.23,2343.5,2343.4,0.42669]
[1725940841662,1.23,2343.7,2343.4,5.0036]
[1725940841845,0.42663,2343.8,2343.6,0.42665]
[1725940842047,0.42663,2343.8,2343.7,0.3827]
[1725940842540,1.65663,2343.8,2343.7,0.3827]
[1725940842940,1.23,2343.8,2343.7,0.80935]
[1725940843141,0.099,2344.2,2343.8,0.42663]
[1725940843349,0.42658,2344.1,2343.9,1.15561]
[1725940843650,0.42657,2344.2,2343.9,0.729]
[1725940843855,0.42658,2344.1,2343.9,1.15561]
[1725940844049,1.23,2344.0,2343.9,0.729]
[1725940844250,1.65659,2344.0,2343.9,0.729]
[1725940846551,0.3711,2344.2,2343.9,1.1556]
[1725940846756,1.65656,2344.2,2343.9,0.729]
[1725940846951,0.42658,2344.1,2344.0,0.3876]
[1725940847949,0.42658,2344.1,2344.0,4.654]
[1725940848257,3.08658,2344.1,2344.0,0.3876]
[1725940853953,0.42659,2344.0,2343.9,0.3666]
[1725940854152,0.782,2344.0,2343.5,0.7625]
[1725940854351,0.42664,2343.8,2343.6,0.42666]
[1725940855464,0.42664,2343.8,2343.7,0.42665]
[1725940855860,0.42662,2343.9,2343.7,0.42665]
[1725940856062,0.42661,2343.9,2343.7,0.42664]
[1725940856359,1.20861,2344.0,2343.8,0.80573]
[1725940856562,1.20861,2344.0,2343.9,0.3993]
[1725940856862,0.82601,2344.0,2343.9,0.7761]
[1725940857158,0.42661,2344.0,2343.9,0.7761]
[1725940858256,2.66,2344.1,2344.0,0.42659]
[1725940858257,0.42658,2344.1,2344.0,0.42659]
[1725940858463,0.42658,2344.1,2343.9,1.2027]
[1725940859163,0.42658,2344.1,2344.0,0.42659]
[1725940859359,0.42658,2344.1,2343.9,0.7761]
[1725940859360,0.42658,2344.1,2343.9,1.2027]
[1725940859863,0.42658,2344.1,2344.0,0.42659]
[1725940860257,0.42658,2344.1,2343.9,0.7761]
[1725940860562,0.42658,2344.1,2343.9,1.2027]
[1725940860948,0.79497,2344.2,2344.0,0.42658]
[1725940861154,0.42658,2344.1,2344.0,0.42658]
[1725940861861,0.42658,2344.1,2343.9,1.2027]
[1725940862263,0.42659,2344.0,2343.9,0.7761]
[1725940862464,0.42664,2343.8,2343.4,4.082]
[1725940862762,2.66,2343.7,2343.5,0.3767]
[1725940862963,0.42667,2343.6,2343.5,0.3767]
[1725940863960,0.42671,2343.4,2343.0,4.082]
[1725940864159,3.0458,2343.5,2343.1,0.80346]
[1725940864466,0.42673,2343.3,2343.1,0.3767]
[1725940864969,0.42672,2343.4,2343.1,0.80345]
[1725940865161,0.42673,2343.3,2343.1,0.3767]
[1725940865360,0.42674,2343.2,2343.1,0.3767]
[1725940866260,3.08673,2343.3,2343.1,0.3767]
[1725940866463,3.08673,2343.3,2343.1,0.4212]
[1725940866666,0.42674,2343.2,2343.1,0.4212]
[1725940867059,0.42674,2343.2,2343.1,0.0445]
[1725940867461,3.08674,2343.3,2343.1,0.0445]
[1725940868561,0.42674,2343.2,2343.1,0.0445]
[1725940870661,4.69474,2343.2,2343.1,0.0445]
[1725940871662,0.42674,2343.2,2343.1,0.0445]
[1725940871863,4.69474,2343.2,2343.1,0.0445]
[1725940872875,1.4936,2343.2,2343.1,0.0445]
[1725940874066,1.8852,2343.2,2343.1,0.0445]
[1725940874571,6.36659666,2343.2,2343.1,0.0445]
[1725940874957,12.36659666,2343.2,2343.1,0.0445]
[1725940876163,0.42685,2342.7,2342.5,0.39]
[1725940876371,0.42685,2342.6,2342.5,0.39]
[1725940877563,2.66,2342.8,2342.5,0.39]
[1725940877766,0.42682,2342.8,2342.6,0.42684]
[1725940878063,0.42682,2342.8,2342.7,0.42683]
[1725940878263,0.42681,2342.9,2342.7,0.42683]
[1725940878763,2.66,2343.0,2342.6,0.3818]
[1725940878962,0.4268,2342.9,2342.7,0.42682]
[1725940879966,0.4268,2342.9,2342.8,0.3941]
[1725940880871,2.66,2343.0,2342.8,0.3941]
[1725940881076,3.08678,2343.0,2342.9,0.3796]
[1725940881569,3.1298,2343.4,2342.9,0.3796]
[1725940881767,0.42675,2343.2,2343.1,0.42676]
[1725940881962,3.0308,2343.4,2343.0,0.3861]
[1725940882162,0.42675,2343.2,2343.0,0.3861]
[1725940882361,0.42675,2343.2,2343.0,0.81286]
[1725940884672,0.42674,2343.3,2343.1,0.42676]
[1725940884871,0.42674,2343.2,2343.1,0.42676]
[1725940885669,3.0308,2343.4,2343.1,0.42676]
[1725940885873,0.42674,2343.2,2343.1,0.42676]
[1725940886970,2.66,2343.4,2343.2,0.42673]
[1725940887171,3.08671,2343.4,2343.3,0.7301]
[1725940895974,0.42671,2343.4,2343.3,0.7301]
[1725940898178,0.42671,2343.4,2343.3,1.15682]
[1725940898377,0.42671,2343.4,2343.3,0.7301]
[1725940899887,0.42671,2343.4,2343.3,1.15682]
[1725940901193,0.42671,2343.4,2343.3,0.7301]
[1725940901806,1.49348,2343.4,2343.3,0.7301]
[1725940902084,0.42674,2343.2,2343.1,0.0445]
[1725940902282,0.42674,2343.2,2343.1,0.4208]
[1725940902283,1.65674,2343.2,2343.1,0.4208]
[1725940903280,1.65674,2343.2,2343.1,0.84756]
[1725940906790,2.7236,2343.2,2343.1,0.0445]
[1725940908793,1.65674,2343.2,2343.1,0.0445]
[1725940908996,0.42676,2343.1,2343.0,0.42677]
[1725940909202,0.81426,2343.1,2343.0,0.42677]
[1725940910303,0.42676,2343.1,2343.0,0.42677]
[1725940910489,1.23,2343.2,2342.9,2.71267568]
[1725940910490,0.42676,2343.2,2342.9,2.71267568]
[1725940910700,0.42676,2343.2,2343.1,0.42676]
[1725940910892,0.42676,2343.2,2343.0,0.42676]
[1725940911095,0.42676,2343.2,2343.0,0.42678]
[1725940911404,0.42675,2343.2,2343.0,0.42676]
[1725940915095,0.42675,2343.2,2343.1,0.42676]
[1725940915800,0.42675,2343.2,2343.0,0.42676]
[1725940917490,0.42675,2343.2,2343.1,0.42676]
[1725940920803,1.65675,2343.2,2343.1,0.42676]
[1725940921210,0.42675,2343.2,2343.1,0.42676]
[1725940922013,0.42675,2343.2,2343.1,0.78896]
[1725940922913,0.42675,2343.2,2343.1,0.3622]
[1725940923104,0.42676,2343.1,2342.9,1.48267568]
[1725940923411,1.23,2343.2,2342.9,1.48267568]
[1725940923412,0.42678,2343.0,2342.9,1.92575568]
[1725940923604,0.42678,2343.0,2342.9,4.14762545]
[1725940923605,0.79598,2343.0,2342.9,4.14762545]
[1725940924114,0.3692,2343.0,2342.9,3.58961152]
[1725940924412,0.3692,2343.0,2342.9,2.47036192]
[1725940924711,0.3692,2343.0,2342.9,4.14762545]
[1725940924910,0.3692,2343.0,2342.9,0.80758]
[1725940925107,0.79598,2343.0,2342.9,0.80758]
[1725940925523,0.3692,2343.0,2342.9,0.80758]
[1725940925999,0.79598,2343.0,2342.9,0.8076]
[1725940926205,0.4268,2342.9,2342.8,0.3982]
[1725940926406,0.8239,2342.9,2342.8,0.3982]
[1725940927308,0.4268,2342.9,2342.8,0.82501]
[1725940928914,0.4268,2342.9,2342.8,0.3982]
[1725940930108,0.4268,2342.9,2342.8,0.82501]
[1725940931404,0.79598,2343.0,2342.9,0.4268]
[1725940931605,0.42677,2343.1,2342.8,0.3982]
[1725940931810,0.42678,2343.0,2342.9,0.42678]
[1725940932518,0.42676,2343.1,2343.0,0.42677]
[1725940933018,0.42676,2343.1,2343.0,1.5461958]
[1725940933409,0.42676,2343.1,2343.0,1.9438958]
[1725940934513,0.81255,2343.2,2343.1,0.42676]
[1725940934722,0.81255,2343.2,2343.1,1.91023015]
[1725940934723,2.04255,2343.2,2343.1,1.91023015]
[1725940934927,2.04255,2343.2,2343.1,3.146295]
[1725940935623,2.04255,2343.2,2343.1,1.91023015]
[1725940935913,2.04255,2343.2,2343.1,3.57306208]
[1725940936513,2.04255,2343.2,2343.1,3.14630208]
[1725940937108,0.81255,2343.2,2343.1,3.57306208]
[1725940937308,0.099,2343.6,2343.5,0.42669]
[1725940937515,0.3738,2343.8,2343.7,0.42665]
[1725940937724,0.3738,2343.8,2343.7,3.20728673]
[1725940937914,0.3738,2343.8,2343.7,3.2072283]
[1725940938216,0.3738,2343.8,2343.7,3.20724863]
[1725940938611,0.3738,2343.8,2343.7,1.5452391]
[1725940938816,0.80043,2343.8,2343.7,1.1185891]
[1725940939019,2.03043,2343.8,2343.6,1.9301491]
[1725940939919,1.6038,2343.8,2343.7,0.42665]
[1725940940311,0.099,2344.4,2343.7,11.4964]
[1725940940510,1.23,2345.2,2344.3,1.23]
[1725940940710,1.86549425,2345.3,2344.7,1.23]
[1725940940908,1.65637,2345.3,2344.9,0.42642]
[1725940941212,1.65637,2345.3,2345.0,0.4015]
[1725940941412,0.21614915,2345.4,2345.0,0.4015]
[1725940941707,1.6564,2345.1,2344.8,0.3935]
[1725940941913,1.23,2344.9,2344.4,0.4015]
[1725940942116,1.23,2344.5,2344.4,0.4015]
[1725940943015,1.23,2344.5,2344.4,0.82802]
[1725940944320,0.42647,2344.7,2344.4,0.82802]
[1725940945615,0.42647,2344.7,2344.4,0.4015]
[1725940945816,0.42647,2344.7,2344.4,0.82802]
[1725940946615,3.4359,2344.8,2344.4,0.82802]
[1725940946616,0.4265,2344.6,2344.4,0.82802]
[1725940946823,2.66,2344.6,2344.4,0.4015]
[1725940947210,3.0865,2344.6,2344.4,0.4015]
[1725940948821,3.0865,2344.6,2344.4,0.82802]
[1725940949019,0.4265,2344.5,2344.4,0.4015]
[1725940949926,3.0865,2344.6,2344.4,0.4015]
[1725940950129,3.0865,2344.6,2344.4,0.82802]
[1725940955927,2.66,2344.6,2344.5,0.4265]
[1725940956126,3.0865,2344.6,2344.4,0.82801]
[1725940957719,3.0865,2344.6,2344.5,0.4265]
[1725940957927,3.0865,2344.6,2344.4,0.82801]
[1725940958325,0.4265,2344.5,2344.4,0.82801]
[1725940958526,2.66,2344.6,2344.4,0.82801]
[1725940958830,3.08649,2344.6,2344.4,0.82801]
[1725940960925,3.08649,2344.6,2344.5,0.4265]
[1725940962426,3.08649,2344.6,2344.4,0.87251]
[1725940965027,0.4265,2344.5,2344.4,0.0445]
[1725940965237,6.82464,2344.5,2344.4,0.0445]
[1725940965535,1.06631,2344.4,2343.7,1.54691]
[1725940965742,3.08656,2344.2,2344.1,0.42657]
[1725940965942,0.4012,2344.3,2344.2,0.42656]
[1725940966139,1.6312,2344.3,2344.2,0.42656]
[1725940966932,2.05774,2344.3,2344.1,0.42656]
[1725940967133,2.05774,2344.3,2344.2,0.3813]
[1725940967529,2.05774,2344.3,2344.2,0.80786]
[1725940967842,2.05774,2344.3,2344.2,0.3813]
[1725940968638,2.42744,2344.3,2344.2,0.3813]
[1725940968838,0.42658,2344.1,2343.9,0.4266]
[1725940969037,1.65659,2344.0,2343.9,0.4266]
[1725940969936,1.23,2344.0,2343.9,0.4266]
[1725940970140,2.42745,2344.3,2343.9,4.2664]
[1725940970443,0.42656,2344.2,2344.1,0.42656]
[1725940970638,2.42745,2344.3,2344.2,0.42656]
[1725940970837,2.42745,2344.3,2344.1,0.80896]
[1725940971040,0.42656,2344.2,2344.1,0.80896]
[1725940973835,2.42745,2344.3,2344.1,0.80896]
[1725940975546,0.42656,2344.2,2344.1,0.80896]
[1725940975741,2.42745,2344.3,2344.1,0.80896]
[1725940975942,2.0009,2344.3,2344.1,0.80896]
[1725940976153,0.42656,2344.2,2344.1,0.80896]
[1725940976743,2.0009,2344.3,2344.1,0.80896]
[1725940976744,2.42745,2344.3,2344.2,0.42656]
[1725940977052,2.42745,2344.3,2344.1,0.80896]
[1725940977242,0.42656,2344.2,2344.1,0.80896]
[1725940977442,2.0009,2344.3,2344.2,0.42656]
[1725940977640,1.65654,2344.3,2344.2,0.42656]
[1725940979664,1.65654,2344.3,2344.1,0.80896]
[1725940980343,1.65654,2344.3,2344.2,0.42656]
[1725940980755,1.65654,2344.3,2344.1,0.3824]
[1725940981055,1.65654,2344.3,2344.2,0.42656]
[1725940981451,1.6105,2344.5,2344.3,0.42654]
[1725940981655,0.42652,2344.4,2344.3,0.42654]
[1725940981963,0.42654,2344.3,2344.2,0.42655]
[1725940982155,0.42654,2344.3,2343.7,1.11334557]
[1725940982156,1.23,2344.3,2343.7,1.11334557]
[1725940982359,1.23,2343.9,2343.8,1.19422]
[1725940982958,1.6065,2343.9,2343.8,1.19422]
[1725940985151,1.6065,2343.9,2343.8,1.19423]
[1725940985747,2.03311,2343.9,2343.7,0.42664]
[1725940986056,0.3803,2343.8,2343.7,0.42664]
[1725940987447,1.23,2344.1,2343.9,0.42659]
[1725940987664,2.43499,2344.1,2343.9,0.42659]
[1725940987853,0.7784,2344.1,2344.0,0.42659]
[1725940988156,0.42655,2344.3,2344.1,0.42658]
[1725940988360,0.42655,2344.3,2344.2,0.376]
[1725940988658,2.44414,2344.4,2344.2,0.80256]
[1725940988857,2.0176,2344.4,2344.2,0.80256]
[1725940989060,0.42654,2344.3,2344.2,0.376]
[1725940991162,1.23,2344.3,2344.0,0.42659]
[1725940991360,0.3989,2344.2,2344.1,0.42658]
[1725940991553,1.65655,2344.3,2344.1,0.42658]
[1725940996758,1.65655,2344.3,2344.2,0.42656]
[1725940997265,2.0176,2344.4,2344.3,0.42654]
[1725940997461,2.44412,2344.4,2344.2,0.42655]
[1725940997765,2.44412,2344.4,2344.2,0.42654]
[1725940997956,2.44412,2344.4,2344.3,0.3665]
[1725940999273,0.42654,2344.3,2344.2,0.42654]
[1725941000058,2.44414,2344.4,2344.2,0.42654]
[1725941000262,2.44414,2344.4,2344.3,0.42654]
[1725941000458,0.42654,2344.3,2344.2,0.42655]
[1725941003267,2.44414,2344.4,2344.3,0.42654]
[1725941003970,2.44414,2344.4,2344.0,0.375]
[1725941004864,2.44414,2344.4,2344.2,0.42654]
[1725941005462,2.44414,2344.4,2344.3,0.42654]
[1725941006071,2.0176,2344.4,2344.3,0.42654]
[1725941006270,0.7876,2344.4,2344.3,0.42654]
[1725941007573,0.4265,2344.5,2344.4,0.42651]
[1725941012364,1.9788,2344.6,2344.4,0.42651]
[1725941012570,0.4265,2344.5,2344.4,0.42651]
[1725941016279,0.7488,2344.6,2344.5,0.4265]
[1725941016478,0.42647,2344.7,2344.5,0.4265]
[1725941016680,0.42647,2344.7,2344.6,0.3685]
[1725941017484,0.42646,2344.8,2344.6,0.3685]
[1725941017673,0.42646,2344.8,2344.7,0.42647]
[1725941017869,0.42646,2344.8,2344.6,0.7307]
[1725941018183,0.42645,2344.8,2344.7,0.42647]
[1725941018381,0.7666,2344.9,2344.7,0.42647]
[1725941018578,1.19305,2344.9,2344.8,0.3775]
[1725941018877,1.19303,2344.9,2344.8,0.3775]
[1725941026582,1.19303,2344.9,2344.8,0.80395]
[1725941027182,1.19303,2344.9,2344.8,0.3775]
[1725941029187,1.19303,2344.9,2344.8,0.80395]
[1725941029595,1.19303,2344.9,2344.8,0.3775]
[1725941030290,0.42643,2344.9,2344.8,0.3775]
[1725941030883,0.42643,2344.9,2344.8,0.80395]
[1725941031595,1.65643,2345.0,2344.9,0.42643]
[1725941031787,0.42643,2345.0,2344.9,0.42643]
[1725941032386,0.42643,2344.9,2344.8,0.80394]
[1725941039397,1.066,2345.1,2344.8,0.80394]
[1725941039594,0.42641,2345.1,2344.8,1.6075]
[1725941039900,0.42641,2345.1,2344.9,0.42642]
[1725941039901,0.4264,2345.1,2344.9,0.42642]
[1725941040101,0.4264,2345.1,2345.0,0.3919]
[1725941040298,0.4264,2345.1,2345.0,0.3735]
[1725941044706,0.42639,2345.1,2345.0,0.7999]